fUSD/lending_fUSD_20250510
["ID","MTS","AMOUNT","RATE_DAILY","PERIOD"]
[360569452,1746892298131,-400.0,0.00019598,2]
[360569453,1746892298142,-400.0,0.00019598,2]
[360569454,1746892298152,-588.95,0.00019598,2]
[360569455,1746892298161,-400.0,0.00019598,2]
[360569456,1746892298170,-400.0,0.00019598,2]
[360569457,1746892298179,-400.0,0.00019598,2]
[360569458,1746892298188,-151.0,0.00019598,2]
[360569459,1746892298198,-1754.01,0.00019598,2]
[360569460,1746892298207,-400.0,0.00019598,2]
[360569461,1746892298216,-400.0,0.00019598,2]
[360569462,1746892298225,-400.0,0.00019598,2]
[360569463,1746892298235,-1238.53,0.00019598,2]
[360569464,1746892298244,-210.78836394,0.00019598,2]
[360569465,1746892298253,-400.0,0.00019598,2]
[360569466,1746892298262,-418.52,0.00019598,2]
[360569467,1746892298271,-488.54,0.00019598,2]
[360569468,1746892298280,-400.0,0.00019598,2]
[360569469,1746892298290,-528.34,0.00019598,2]
[360569470,1746892298299,-400.0,0.00019598,2]
[360569471,1746892298309,-846.92,0.00019598,2]
[360569472,1746892298318,-637.44,0.00019598,2]
[360569473,1746892298327,-238.84541832,0.00019598,2]
[360569474,1746892298336,-400.0,0.00019598,2]
[360569475,1746892298345,-984.44,0.00019598,2]
[360569476,1746892298354,-400.0,0.00019598,2]
[360569477,1746892298364,-400.0,0.00019598,2]
[360569478,1746892298373,-400.0,0.00019598,2]
[360569479,1746892298382,-400.0,0.00019598,2]
[360569480,1746892298391,-400.0,0.00019598,2]
[360569481,1746892298401,-1083.14,0.00019598,2]
[360569482,1746892298410,-400.0,0.00019598,2]
[360569483,1746892298419,-400.0,0.00019598,2]
[360569484,1746892298429,-400.0,0.00019598,2]
[360569485,1746892298438,-400.0,0.00019598,2]
[360569486,1746892298448,-511.98857428,0.00019598,2]
[360569487,1746892298457,-1122.56,0.00019598,2]
[360569488,1746892298466,-876.89,0.00019598,2]
[360569489,1746892298475,-705.51,0.00019598,2]
[360569490,1746892298485,-400.0,0.00019598,2]
[360569491,1746892298494,-537.0,0.00019598,2]
[360569492,1746892298504,-794.68,0.00019598,2]
[360569493,1746892298514,-400.0,0.00019598,2]
[360569494,1746892298524,-400.0,0.00019598,2]
[360569495,1746892298533,-400.0,0.00019598,2]
[360569496,1746892298543,-1208.24,0.00019598,2]
[360569497,1746892298553,-400.0,0.00019598,2]
[360569498,1746892298563,-556.42,0.00019598,2]
[360569499,1746892298572,-1156.88,0.00019598,2]
[360569500,1746892298582,-642.95,0.00019598,2]
[360569501,1746892298592,-400.0,0.00019598,2]
[360569502,1746892298602,-400.0,0.00019598,2]
[360569503,1746892298611,-400.0,0.00019598,2]
[360569504,1746892298620,-577.4,0.00019598,2]
[360569505,1746892298630,-456.88,0.00019598,2]
[360569506,1746892298639,-3974.16,0.00019598,2]
[360569507,1746892298649,-400.0,0.00019598,2]
[360569508,1746892298658,-400.0,0.00019598,2]
[360569509,1746892298670,-400.0,0.00019598,2]
[360569510,1746892298680,-400.0,0.00019598,2]
[360569511,1746892298690,-400.0,0.00019598,2]
[360569512,1746892298699,-5700.74,0.00019598,2]
[360569513,1746892298709,-400.0,0.00019598,2]
[360569514,1746892298718,-151.0,0.00019598,2]
[360569515,1746892298728,-348.69498141,0.00019598,2]
[360569516,1746892298738,-400.0,0.00019598,2]
[360569517,1746892298747,-3252.23,0.00019598,2]
[360569518,1746892298756,-756.48826996,0.00019598,2]
[360569519,1746892318516,-404.39173004,0.00019598,2]
[360569520,1746892318524,-416.66,0.00019598,2]
[360569521,1746892318533,-400.0,0.00019598,2]
[360569522,1746892318543,-303.955261,0.00019598,2]
[360569523,1746892318553,-3364.91,0.00019598,2]
[360569524,1746892318564,-400.0,0.00019598,2]
[360569525,1746892318572,-400.0,0.00019598,2]
[360569526,1746892318582,-539.04616512,0.00019598,2]
[360569527,1746892318594,-886.72,0.00019598,2]
[360569528,1746892318606,-164.56383488,0.00019598,2]
[360569529,1746892318615,-303.955261,0.00019598,2]
[360569530,1746892318625,-400.0,0.00019598,2]
[360569531,1746892318634,-43.45090407,0.00019598,2]
[360569532,1746892318646,-356.54909593,0.00019598,2]
[360569533,1746892318656,-448.36,0.00019598,2]
[360569534,1746892318666,-400.0,0.00019598,2]
[360569535,1746892318676,-400.0,0.00019598,2]
[360569536,1746892318685,-423.6399041,0.00019598,2]
[360569537,1746892381614,150.0,0.00030137,120]
[360569538,1746892399238,507.694659,0.00030078,120]
[360569540,1746892460866,472.0,0.0003,30]
[360569541,1746892466077,1991.04,0.00020575,30]
[360569543,1746892510681,1500.0,0.00027671,33]
[360569544,1746892510934,1944.13124325,0.00028493,36]
[360569545,1746892521810,386.09156295,0.0003013,120]
[360569546,1746892598003,174.27085,0.0002437,33]
[360569548,1746892697002,-737.68615919,0.0001812,2]
[360569549,1746892697043,-737.68615919,0.0001812,2]
[360569550,1746892697084,-737.68615919,0.0001812,2]
[360569551,1746892697123,-737.68615919,0.0001812,2]
[360569552,1746892697163,-737.68615919,0.0001812,2]
[360569553,1746892697207,-737.68615919,0.0001812,2]
[360569554,1746892697251,-737.68615919,0.0001812,2]
[360569555,1746892697292,-737.68615919,0.0001812,2]
[360569556,1746892697334,-737.68615919,0.0001812,2]
[360569557,1746892697373,-737.68615919,0.0001812,2]
[360569558,1746892697411,-737.68615919,0.0001812,2]
[360569559,1746892697449,-737.68615919,0.0001812,2]
[360569560,1746892697489,-737.68615919,0.0001812,2]
[360569561,1746892697527,-737.68615919,0.0001812,2]
[360569562,1746892697566,-737.68615919,0.0001812,2]
[360569563,1746892697604,-737.68615919,0.0001812,2]
[360569564,1746892697642,-737.68615919,0.0001812,2]
[360569565,1746892697680,-737.68615919,0.0001812,2]
[360569566,1746892697716,-737.68615919,0.0001812,2]
[360569567,1746892697755,-737.68615919,0.0001812,2]
[360569568,1746892697795,-737.68615919,0.0001812,2]
[360569569,1746892697835,-737.68615919,0.0001812,2]
[360569570,1746892697874,-737.68615919,0.0001812,2]
[360569571,1746892697914,-737.68615919,0.0001812,2]
[360569572,1746892697951,-737.68615919,0.0001812,2]
[360569573,1746892697990,-737.68615919,0.0001812,2]
[360569574,1746892698029,-737.68615919,0.0001812,2]
[360569575,1746892698067,-737.68615919,0.0001812,2]
[360569576,1746892698107,-737.68615919,0.0001812,2]
[360569577,1746892698144,-737.68615919,0.0001812,2]
[360569578,1746892698183,-737.68615919,0.0001812,2]
[360569579,1746892698211,-500.0,0.0001812,2]
[360569580,1746892698238,-500.0,0.0001812,2]
[360569581,1746892698266,-500.0,0.0001812,2]
[360569582,1746892698294,-500.0,0.0001812,2]
[360569583,1746892698321,-250.0,0.0001812,2]
[360569584,1746892698363,-1322.49534901,0.0001812,2]
[360569585,1746892698403,-1322.49534901,0.0001812,2]
[360569586,1746892698444,-1322.49534901,0.0001812,2]
[360569587,1746892698486,-1322.49534901,0.0001812,2]
[360569588,1746892698529,-1322.49534901,0.0001812,2]
[360569589,1746892698571,-1322.49534901,0.0001812,2]
[360569590,1746892698613,-1322.49534901,0.0001812,2]
[360569591,1746892698657,-1322.49534901,0.0001812,2]
[360569592,1746892698702,-1322.49534901,0.0001812,2]
[360569593,1746892698745,-1322.49534901,0.0001812,2]
[360569594,1746892698788,-1322.49534901,0.0001812,2]
[360569595,1746892698827,-1322.49534901,0.0001812,2]
[360569596,1746892699238,-1322.49534901,0.0001812,2]
[360569597,1746892699279,-1322.49534901,0.0001812,2]
[360569598,1746892699316,-1322.49534901,0.0001812,2]
[360569599,1746892699352,-1322.49534901,0.0001812,2]
[360569600,1746892699392,-1322.49534901,0.0001812,2]
[360569601,1746892699430,-1322.49534901,0.0001812,2]
[360569602,1746892699470,-1322.49534901,0.0001812,2]
[360569603,1746892699508,-1322.49534901,0.0001812,2]
[360569604,1746892699544,-1322.49534901,0.0001812,2]
[360569605,1746892699582,-1322.49534901,0.0001812,2]
[360569606,1746892699617,-1322.49534901,0.0001812,2]
[360569607,1746892699653,-1322.49534901,0.0001812,2]
[360569608,1746892699689,-1322.49534901,0.0001812,2]
[360569609,1746892699724,-1322.49534901,0.0001812,2]
[360569610,1746892699759,-1311.11904494,0.0001812,2]
[360569611,1746892699796,-1311.11904494,0.0001812,2]
[360569612,1746892699834,-1311.11904494,0.0001812,2]
[360569613,1746892699871,-1311.11904494,0.0001812,2]
[360569614,1746892699910,-1311.11904494,0.0001812,2]
[360569615,1746892699947,-1311.11904494,0.0001812,2]
[360569616,1746892699983,-1311.11904494,0.0001812,2]
[360569617,1746892700019,-1311.11904494,0.0001812,2]
[360569618,1746892700056,-1311.11904494,0.0001812,2]
[360569619,1746892700092,-1311.11904494,0.0001812,2]
[360569620,1746892700126,-1311.11904494,0.0001812,2]
[360569621,1746892700161,-1311.11904494,0.0001812,2]
[360569622,1746892700198,-1311.11904494,0.0001812,2]
[360569623,1746892700234,-1311.11904494,0.0001812,2]
[360569624,1746892700271,-1311.11904494,0.0001812,2]
[360569625,1746892700308,-1311.11904494,0.0001812,2]
[360569626,1746892700342,-1270.32867465,0.0001812,2]
[360569627,1746892700376,-1270.32867465,0.0001812,2]
[360569628,1746892700410,-539.28792251,0.0001812,2]
[360569629,1746892774738,721.52,0.00016314,2]
[360569630,1746892841533,692.06,0.00013699,2]
[360569634,1746892948453,350.0,0.00013,2]
[360569636,1746892987281,200.0,0.0003,30]
[360569637,1746892997279,870.4,0.00024873,120]
[360569638,1746892997637,870.4,0.00027134,120]
[360569639,1746892997727,-154.46608424,0.00017488,2]
[360569640,1746892997792,-50.85693456,0.00018089,2]
[360569641,1746893001300,-375.82191172,0.00018089,2]
[360569642,1746893014329,200.0,0.0002945,44]
[360569643,1746893029478,200.0,0.00029,120]
[360569644,1746893030776,6000.0,0.00030137,120]
[360569645,1746893041582,-175.17808828,0.00017998,2]
[360569646,1746893046379,-50.64382372,0.00017998,2]
[360569647,1746893066471,400.0,0.0003013,120]
[360569664,1746893082719,-195.6,0.00018079,2]
[360569666,1746893092330,-188.44163347,0.00018079,2]
[360569667,1746893102748,204.24742354,0.0003,120]
[360569668,1746893106415,-217.99600651,0.00018079,2]
[360569670,1746893121846,-491.13,0.00018022,2]
[360569671,1746893121917,-26.4083065,0.00018079,2]
[360569672,1746893136291,-167.8597507,0.00018079,2]
[360569673,1746893151365,-300.0,0.00018079,2]
[360569675,1746893229092,-200.0,0.00018048,2]
[360569676,1746893229114,-222.20824794,0.00018079,2]
[360569677,1746893230644,-235.13615954,0.00018079,2]
[360569679,1746893235140,-183.28965096,0.00018079,2]
[360569680,1746893241097,-165.44024438,0.00018079,2]
[360569681,1746893241120,-443.72115372,0.00018089,2]
[360569682,1746893241141,-150.69156866,0.00018102,2]
[360569698,1746893432102,-278.0,0.00018118,2]
[360569699,1746893432112,-300.0,0.00018118,2]
[360569700,1746893432122,-773.86410979,0.00018118,2]
[360569701,1746893432133,-426.13589021,0.00018118,2]
[360569702,1746893432142,-250.0,0.00018118,2]
[360569703,1746893432152,-500.0,0.00018119,2]
[360569704,1746893432161,-250.0,0.00018119,2]
[360569705,1746893432171,-500.0,0.00018119,2]
[360569706,1746893432180,-500.0,0.00018119,2]
[360569707,1746893432190,-500.0,0.00018119,2]
[360569708,1746893432199,-500.0,0.00018119,2]
[360569709,1746893432209,-500.0,0.00018119,2]
[360569710,1746893432220,-500.0,0.00018119,2]
[360569711,1746893432231,-500.0,0.00018119,2]
[360569712,1746893432241,-500.0,0.00018119,2]
[360569713,1746893432251,-500.0,0.00018119,2]
[360569714,1746893432260,-500.0,0.00018119,2]
[360569715,1746893432269,-500.0,0.00018119,2]
[360569716,1746893432279,-384.86410979,0.00018119,2]
[360569717,1746893432290,-115.13589021,0.00018119,2]
[360569718,1746893432300,-500.0,0.00018119,2]
[360569720,1746893432309,-500.0,0.00018119,2]
[360569721,1746893432318,-500.0,0.00018119,2]
[360569723,1746893432328,-382.86607173,0.00018119,2]
[360569725,1746893432350,-117.13392827,0.00018119,2]
[360569727,1746893432360,-500.0,0.00018119,2]
[360569729,1746893432370,-500.0,0.00018119,2]
[360569730,1746893432380,-500.0,0.00018119,2]
[360569732,1746893432390,-138.16607173,0.00018119,2]
[360569733,1746893432402,-361.83392827,0.00018119,2]
[360569734,1746893432413,-500.0,0.00018119,2]
[360569735,1746893432425,-500.0,0.00018119,2]
[360569736,1746893432435,-473.07364157,0.00018119,2]
[360569737,1746893432457,-26.92635843,0.00018119,2]
[360569738,1746893432467,-427.2539746,0.00018119,2]
[360569739,1746893432478,-72.7460254,0.00018119,2]
[360569740,1746893432488,-500.0,0.00018119,2]
[360569741,1746893432497,-500.0,0.00018119,2]
[360569742,1746893432507,-361.89979685,0.00018119,2]
[360569743,1746893432519,-138.10020315,0.00018119,2]
[360569744,1746893432529,-500.0,0.00018119,2]
[360569745,1746893432539,-500.0,0.00018119,2]
[360569746,1746893432548,-500.0,0.00018119,2]
[360569747,1746893432557,-500.0,0.00018119,2]
[360569748,1746893432567,-67.72283751,0.00018119,2]
[360569749,1746893432578,-432.27716249,0.00018119,2]
[360569750,1746893432588,-51.58785751,0.00018119,2]
[360569751,1746893432625,-448.41214249,0.00018119,2]
[360569752,1746893432635,-500.0,0.00018119,2]
[360569753,1746893432644,-500.0,0.00018119,2]
[360569754,1746893432653,-500.0,0.00018119,2]
[360569755,1746893432663,-500.0,0.00018119,2]
[360569756,1746893432672,-500.0,0.00018119,2]
[360569757,1746893432681,-500.0,0.00018119,2]
[360569758,1746893432691,-500.0,0.00018119,2]
[360569759,1746893432700,-500.0,0.00018119,2]
[360569760,1746893432709,-500.0,0.00018119,2]
[360569761,1746893432719,-500.0,0.00018119,2]
[360569762,1746893432728,-500.0,0.00018119,2]
[360569763,1746893432739,-500.0,0.00018119,2]
[360569764,1746893432749,-500.0,0.00018119,2]
[360569765,1746893432758,-394.94805839,0.00018119,2]
[360569766,1746893432769,-500.0,0.00018119,2]
[360569767,1746893432778,-500.0,0.00018119,2]
[360569768,1746893432787,-500.0,0.00018119,2]
[360569769,1746893432796,-500.0,0.00018119,2]
[360569770,1746893432806,-500.0,0.00018119,2]
[360569772,1746893432816,-151.0,0.0001812,2]
[360569774,1746893432825,-1037.22751067,0.0001812,2]
[360569776,1746893432834,-200.0,0.00018253,2]
[360569778,1746893432843,-1000.0,0.00018265,2]
[360569780,1746893432852,-3066.56,0.00018382,2]
[360569782,1746893432861,-151.0,0.00018514,2]
[360569784,1746893432871,-153.4,0.00018514,2]
[360569786,1746893432880,-195.6,0.00018514,2]
[360569788,1746893432889,-188.44163347,0.00018514,2]
[360569790,1746893432899,-217.99600651,0.00018514,2]
[360569792,1746893432908,-500.0,0.00018514,2]
[360569794,1746893432917,-235.53431301,0.00018514,2]
[360569796,1746893432927,-249.86374419,0.00018514,2]
[360569798,1746893432936,-235.13615954,0.00018514,2]
[360569800,1746893432945,-10078.06,0.00018515,2]
[360569802,1746893432955,-200.0,0.0001855,2]
[360569804,1746893432964,-721.52,0.00018578,2]
[360569806,1746893432973,-207.4,0.00018636,2]
[360569808,1746893432983,-517.21119924,0.00018878,2]
[360569810,1746893432993,-405.1003,0.000189,2]
[360569812,1746893433002,-211.7625,0.000189,2]
[360569814,1746893433011,-151.0,0.00019067,2]
[360569816,1746893433021,-668.65185757,0.00019067,2]
[360569818,1746893433030,-4625.43886069,0.00019068,2]
[360569820,1746893433040,-802.11312561,0.00019078,2]
[360569822,1746893433050,-181.64149338,0.00019078,2]
[360569824,1746893433060,-1516.54936036,0.00019078,2]
[360569826,1746893433069,-173.09346881,0.00019078,2]
[360569828,1746893433079,-194.77304099,0.00019078,3]
[360569830,1746893433089,-150.90641667,0.00019078,2]
[360569832,1746893433098,-559.17710427,0.00019113,2]
[360569834,1746893433108,-802.1131256,0.00019123,2]
[360569836,1746893433117,-500.0,0.00019151,2]
[360569838,1746893433127,-802.1131256,0.00019169,2]
[360569840,1746893433136,-502.01928571,0.00019173,2]
[360569842,1746893433146,-169.62698688,0.00019173,2]
[360569844,1746893433156,-501.91737302,0.00019173,2]
[360569846,1746893433166,-500.0,0.00019173,2]
[360569848,1746893433176,-508.51447964,0.00019173,2]
[360569850,1746893433186,-500.64623888,0.00019173,2]
[360569853,1746893433206,-500.0,0.00019173,2]
[360569855,1746893433216,-502.27405274,0.00019173,2]
[360569857,1746893433226,-453.1549407,0.00019173,2]
[360569930,1746893433927,-2.23151508,0.00019173,2]
[360569932,1746893433939,-45.75087687,0.00019173,2]
[360569934,1746893433948,-500.0,0.00019173,2]
[360569936,1746893433958,-95.85716739,0.00019173,2]
[360570211,1746893438377,-20.36551667,0.00019173,2]
[360570212,1746893438389,-383.77731594,0.00019173,2]
[360570213,1746893438399,-500.43387931,0.00019173,2]
[360570214,1746893438408,-500.0,0.00019173,2]
[360570215,1746893438419,-179.52872515,0.00019173,2]
[360570216,1746893438431,-320.47127485,0.00019173,2]
[360570217,1746893438441,-402.95288995,0.00019173,2]
[360570218,1746893438450,-500.0,0.00019173,2]
[360570219,1746893438460,-500.0,0.00019173,2]
[360570220,1746893438472,-172.59932243,0.00019173,2]
[360570221,1746893438482,-500.0,0.00019173,2]
[360570222,1746893438492,-481.30373157,0.00019173,2]
[360570223,1746893438502,-502.655626,0.00019173,2]
[360570224,1746893438511,-153.58182999,0.00019173,2]
[360570225,1746893438520,-829.78200853,0.00019173,2]
[360570226,1746893438530,-300.0,0.00019177,2]
[360570227,1746893438540,-300.0,0.00019177,2]
[360570228,1746893438549,-300.0,0.00019177,2]
[360570230,1746893438559,-300.0,0.00019177,2]
[360570232,1746893438568,-348.55328534,0.00019177,2]
[360570234,1746893438578,-176.79165169,0.00019177,2]
[360570236,1746893438587,-232.24603724,0.00019177,2]
[360570238,1746893438597,-195.93032523,0.00019177,2]
[360570240,1746893438607,-463.23794398,0.00019177,2]
[360570242,1746893438616,-613.0,0.00019178,2]
[360570244,1746893438625,-151.0,0.00019178,2]
[360570246,1746893438634,-151.0,0.00019178,2]
[360570248,1746893438643,-484.30421269,0.00019178,2]
[360570250,1746893438653,-234.18391149,0.00019178,2]
[360570252,1746893438662,-400.0,0.00019178,2]
[360570254,1746893438671,-528.92589217,0.00019178,2]
[360570256,1746893438681,-400.0,0.00019178,2]
[360570258,1746893438690,-411.1950818,0.00019178,2]
[360570260,1746893438700,-412.63855134,0.00019178,2]
[360570262,1746893438709,-379.84450935,0.00019178,2]
[360570264,1746893438718,-400.0,0.00019178,2]
[360570266,1746893438727,-400.0,0.00019178,2]
[360570268,1746893438736,-400.0,0.00019178,2]
[360570270,1746893438745,-400.0,0.00019178,2]
[360570271,1746893438755,-400.0,0.00019178,2]
[360570272,1746893438764,-405.95454262,0.00019178,2]
[360570273,1746893438774,-400.0,0.00019178,2]
[360570274,1746893438783,-400.0,0.00019178,2]
[360570275,1746893438792,-400.0,0.00019178,2]
[360570276,1746893438802,-400.0,0.00019178,2]
[360570277,1746893438811,-358.1469586,0.00019178,2]
[360570278,1746893438820,-400.0,0.00019178,2]
[360570279,1746893438829,-400.0,0.00019178,2]
[360570280,1746893438839,-400.0,0.00019178,2]
[360570281,1746893438848,-400.0,0.00019178,2]
[360570282,1746893438857,-400.0,0.00019178,2]
[360570283,1746893438869,-400.0,0.00019178,2]
[360570284,1746893438879,-400.0,0.00019178,2]
[360570285,1746893438888,-400.0,0.00019178,2]
[360570286,1746893438897,-400.0,0.00019178,2]
[360570287,1746893438906,-400.0,0.00019178,2]
[360570288,1746893438915,-400.0,0.00019178,2]
[360570289,1746893438924,-400.0,0.00019178,2]
[360570290,1746893438933,-400.0,0.00019178,2]
[360570291,1746893438943,-400.0,0.00019178,2]
[360570292,1746893438952,-392.4499986,0.00019178,2]
[360570391,1746893440943,-7.5500014,0.00019178,2]
[360570392,1746893440952,-400.0,0.00019178,2]
[360570393,1746893440962,-463.94598679,0.00019178,2]
[360570394,1746893440971,-400.0,0.00019178,2]
[360570395,1746893440980,-400.0,0.00019178,2]
[360570396,1746893440992,-400.0,0.00019178,2]
[360570397,1746893441004,-400.0,0.00019178,2]
[360570398,1746893441018,-400.0,0.00019178,2]
[360570399,1746893441029,-400.0,0.00019178,2]
[360570400,1746893441038,-400.0,0.00019178,2]
[360570401,1746893441048,-400.0,0.00019178,2]
[360570402,1746893441058,-400.0,0.00019178,2]
[360570403,1746893441067,-400.0,0.00019178,2]
[360570404,1746893441076,-146.65605093,0.00019178,2]
[360570405,1746893441412,-253.34394907,0.00019178,2]
[360570406,1746893441425,-400.0,0.00019178,2]
[360570407,1746893441434,-170.0,0.00019178,2]
[360570408,1746893441443,-400.0,0.00019178,2]
[360570409,1746893441453,-400.0,0.00019178,2]
[360570410,1746893441463,-400.0,0.00019178,2]
[360570411,1746893441472,-459.4357278,0.00019178,2]
[360570412,1746893441482,-400.0,0.00019178,2]
[360570413,1746893441491,-400.0,0.00019178,2]
[360570414,1746893441500,-527.85121806,0.00019178,2]
[360570415,1746893441509,-458.54,0.00019178,2]
[360570416,1746893441518,-458.54,0.00019178,2]
[360570417,1746893441527,-458.54,0.00019178,2]
[360570418,1746893441537,-458.54,0.00019178,2]
[360570419,1746893441547,-458.54,0.00019178,2]
[360570420,1746893441556,-458.54,0.00019178,2]
[360570421,1746893441565,-458.54,0.00019178,2]
[360570422,1746893441574,-458.54,0.00019178,2]
[360570423,1746893441583,-458.54,0.00019178,2]
[360570424,1746893441593,-458.54,0.00019178,2]
[360570425,1746893441603,-400.0,0.00019178,2]
[360570426,1746893441612,-400.0,0.00019178,2]
[360570427,1746893441621,-400.0,0.00019178,2]
[360570428,1746893441631,-400.0,0.00019178,2]
[360570429,1746893441640,-400.0,0.00019178,2]
[360570430,1746893441649,-400.0,0.00019178,2]
[360570431,1746893441658,-400.0,0.00019178,2]
[360570432,1746893441667,-400.0,0.00019178,2]
[360570433,1746893441676,-503.1665558,0.00019178,2]
[360570434,1746893441686,-400.0,0.00019178,2]
[360570435,1746893441696,-400.0,0.00019178,2]
[360570436,1746893441705,-400.0,0.00019178,2]
[360570437,1746893441714,-400.0,0.00019178,2]
[360570438,1746893441724,-400.0,0.00019178,2]
[360570439,1746893441734,-444.04,0.00019178,2]
[360570440,1746893441744,-400.0,0.00019178,2]
[360570441,1746893441753,-444.04,0.00019178,2]
[360570442,1746893441763,-400.0,0.00019178,2]
[360570443,1746893441772,-444.04,0.00019178,2]
[360570444,1746893441782,-444.04,0.00019178,2]
[360570445,1746893441792,-421.03306795,0.00019178,2]
[360570446,1746893441802,-444.04,0.00019178,2]
[360570447,1746893441814,-444.04,0.00019178,2]
[360570448,1746893441827,-444.04,0.00019178,2]
[360570449,1746893441837,-444.04,0.00019178,2]
[360570450,1746893441846,-444.04,0.00019178,2]
[360570451,1746893441855,-444.04,0.00019178,2]
[360570452,1746893441864,-400.0,0.00019178,2]
[360570453,1746893441874,-400.0,0.00019178,2]
[360570454,1746893441883,-400.0,0.00019178,2]
[360570455,1746893441893,-401.14,0.00019178,2]
[360570456,1746893441903,-400.0,0.00019178,2]
[360570457,1746893441912,-401.14,0.00019178,2]
[360570458,1746893441921,-400.0,0.00019178,2]
[360570459,1746893441931,-400.0,0.00019178,2]
[360570460,1746893441940,-401.14,0.00019178,2]
[360570461,1746893441950,-400.0,0.00019178,2]
[360570462,1746893441960,-401.14,0.00019178,2]
[360570463,1746893441969,-401.14,0.00019178,2]
[360570464,1746893441979,-400.0,0.00019178,2]
[360570465,1746893441988,-400.0,0.00019178,2]
[360570466,1746893442000,-401.14,0.00019178,2]
[360570467,1746893442010,-400.0,0.00019178,2]
[360570468,1746893442020,-401.14,0.00019178,2]
[360570469,1746893442030,-401.14,0.00019178,2]
[360570470,1746893442039,-401.14,0.00019178,2]
[360570471,1746893442049,-401.14,0.00019178,2]
[360570472,1746893442058,-400.0,0.00019178,2]
[360570473,1746893442068,-400.0,0.00019178,2]
[360570474,1746893442078,-478.74962434,0.00019178,2]
[360570475,1746893442088,-400.0,0.00019178,2]
[360570476,1746893442097,-400.0,0.00019178,2]
[360570477,1746893442107,-400.0,0.00019178,2]
[360570478,1746893442117,-400.0,0.00019178,2]
[360570479,1746893442128,-400.0,0.00019178,2]
[360570480,1746893442138,-400.0,0.00019178,2]
[360570481,1746893442148,-530.03,0.00019178,2]
[360570482,1746893442158,-400.0,0.00019178,2]
[360570483,1746893442168,-530.03,0.00019178,2]
[360570484,1746893442177,-530.03,0.00019178,2]
[360570485,1746893442186,-400.0,0.00019178,2]
[360570486,1746893442196,-530.03,0.00019178,2]
[360570487,1746893442206,-400.0,0.00019178,2]
[360570488,1746893442216,-530.03,0.00019178,2]
[360570489,1746893442225,-530.03,0.00019178,2]
[360570490,1746893442235,-530.03,0.00019178,2]
[360570491,1746893442247,-400.0,0.00019178,2]
[360570492,1746893442256,-530.03,0.00019178,2]
[360570493,1746893442266,-400.0,0.00019178,2]
[360570494,1746893442277,-530.03,0.00019178,2]
[360570495,1746893442286,-400.0,0.00019178,2]
[360570496,1746893442296,-530.03,0.00019178,2]
[360570497,1746893442306,-400.0,0.00019178,2]
[360570498,1746893442316,-486.08531132,0.00019178,2]
[360570499,1746893442325,-400.0,0.00019178,2]
[360570500,1746893442335,-400.0,0.00019178,2]
[360570501,1746893442344,-400.0,0.00019178,2]
[360570502,1746893442353,-400.0,0.00019178,2]
[360570503,1746893442363,-400.0,0.00019178,2]
[360570504,1746893442372,-400.0,0.00019178,2]
[360570505,1746893442382,-400.0,0.00019178,2]
[360570506,1746893442391,-400.0,0.00019178,2]
[360570507,1746893442401,-400.0,0.00019178,2]
[360570508,1746893442411,-400.0,0.00019178,2]
[360570509,1746893442425,-400.0,0.00019178,2]
[360570510,1746893442435,-400.0,0.00019178,2]
[360570511,1746893442445,-400.0,0.00019178,2]